bitfinex/quotes_ETHUSD_20240630
["timestamp","ask_amount","ask_price","bid_price","bid_amount"]
[1719712827079,0.04754199,3380.5,3380.4,0.858]
[1719712827364,0.04754199,3380.5,3380.4,1.408]
[1719712827573,7.33,3380.8,3380.4,1.6038]
[1719712827772,0.04753784,3380.5,3380.4,1.6038]
[1719712828284,7.33,3380.8,3380.4,1.6038]
[1719712828468,7.33,3380.8,3380.5,0.55]
[1719712830701,0.04759144,3380.7,3380.5,0.55]
[1719712831041,7.33,3380.8,3380.5,0.55]
[1719712831240,0.04759144,3380.7,3380.5,0.55]
[1719712831507,7.33,3380.8,3380.5,1.408]
[1719712831708,0.04756464,3380.6,3380.5,1.408]
[1719712831846,7.33,3380.8,3380.5,1.408]
[1719712832042,0.04759144,3380.7,3380.5,1.408]
[1719712832295,2.96614,3380.8,3380.5,0.55]
[1719712832619,0.04758951,3380.6,3380.4,0.55]
[1719712832754,2.4014,3380.7,3380.4,0.55]
[1719712832959,0.0475876,3380.5,3380.4,0.55]
[1719712833162,2.4014,3380.7,3380.4,0.55]
[1719712833382,0.0475876,3380.5,3380.4,0.55]
[1719712833591,2.4014,3380.7,3380.4,0.55]
[1719712833771,0.0475876,3380.5,3380.4,0.55]
[1719712834285,2.4014,3380.7,3380.4,0.55]
[1719712834568,0.04760748,3380.6,3380.4,0.55]
[1719712834802,0.04760748,3380.6,3380.3,0.55]
[1719712855218,0.04760748,3380.6,3380.1,0.55]
[1719712859030,0.04760748,3380.6,3380.2,0.858]
[1719712859234,0.04760748,3380.6,3380.3,0.55]
[1719712862953,2.4206,3380.5,3379.9,0.858]
[1719712863157,2.46647398,3380.5,3380.0,0.55]
[1719712889137,2.46647398,3380.5,3380.4,0.858]
[1719712889138,0.04587398,3380.5,3380.4,0.858]
[1719712889464,2.4273,3380.8,3380.4,1.408]
[1719712889729,2.4273,3380.8,3380.4,0.858]
[1719712889730,0.04586153,3380.5,3380.4,0.858]
[1719712889910,2.4273,3380.8,3380.4,1.408]
[1719712890220,2.4273,3380.8,3380.4,0.858]
[1719712890408,0.04591513,3380.7,3380.5,0.55]
[1719712890581,2.4273,3380.8,3380.5,0.55]
[1719712890791,0.04588833,3380.6,3380.5,0.55]
[1719712891124,2.4273,3380.8,3380.5,0.55]
[1719712891714,0.04591513,3380.7,3380.5,0.55]
[1719712892135,2.4273,3380.8,3380.5,0.55]
[1719712892641,0.04591513,3380.7,3380.5,0.55]
[1719712892818,2.4273,3380.8,3380.5,0.55]
[1719712893022,0.04588833,3380.6,3380.5,0.55]
[1719712893183,2.4273,3380.8,3380.5,0.55]
[1719712893712,0.04591513,3380.7,3380.5,0.55]
[1719712894015,2.4273,3380.8,3380.5,0.55]
[1719712894220,0.04588833,3380.6,3380.5,0.55]
[1719712894376,2.4273,3380.8,3380.5,0.55]
[1719712894612,0.04588833,3380.6,3380.5,0.55]
[1719712895125,2.4273,3380.8,3380.5,0.55]
[1719712895653,0.04591513,3380.7,3380.5,0.55]
[1719712896144,2.4273,3380.8,3380.5,0.55]
[1719712896304,0.045425,3380.6,3380.5,0.55]
[1719712896508,2.4273,3380.8,3380.5,0.55]
[1719712896908,0.0454518,3380.7,3380.5,0.55]
[1719712897209,2.4273,3380.8,3380.5,0.55]
[1719712897535,0.045425,3380.6,3380.5,0.55]
[1719712897724,2.4273,3380.8,3380.5,0.55]
[1719712898237,0.0454518,3380.7,3380.5,0.55]
[1719712898421,2.4273,3380.8,3380.5,0.55]
[1719712898676,0.045425,3380.6,3380.5,0.55]
[1719712898966,2.4273,3380.8,3380.5,0.55]
[1719712899151,0.045425,3380.6,3380.5,0.55]
[1719712899368,2.4273,3380.8,3380.5,0.55]
[1719712900112,0.0454518,3380.7,3380.5,0.55]
[1719712900669,0.045425,3380.6,3380.5,0.55]
[1719712901015,2.4273,3380.8,3380.5,0.55]
[1719712901567,2.4858,3381.1,3380.5,0.55]
[1719712901716,0.04547946,3380.7,3380.5,0.55]
[1719712901914,2.4858,3381.1,3380.5,0.55]
[1719712902122,0.04555985,3381.0,3380.6,0.55]
[1719712904163,2.4858,3381.1,3380.6,0.55]
[1719712904164,0.04553305,3380.9,3380.6,0.55]
[1719712904337,2.48135985,3381.1,3380.6,0.55]
[1719712904539,0.04404118,3381.0,3380.6,0.55]
[1719712908567,0.04404118,3381.0,3380.5,0.858]
[1719712908874,2.4858,3380.9,3380.6,0.55]
[1719712909365,0.04266462,3380.8,3380.6,0.55]
[1719712910379,0.04266462,3380.8,3380.4,0.55]
[1719712910546,0.04266462,3380.8,3380.4,0.7216]
[1719712913742,0.04266462,3380.8,3380.5,0.858]
[1719712913942,0.04266462,3380.8,3380.6,0.55]
[1719712915375,0.04266462,3380.8,3380.4,0.55]
[1719712915755,7.33,3381.2,3380.3,0.858]
[1719712915756,2.4858,3380.7,3380.3,0.858]
[1719712915979,0.04261796,3380.6,3380.4,0.55]
[1719712917303,0.04261796,3380.6,3379.5,0.32423126]
[1719712917509,2.4858,3380.5,3379.9,1.716]
[1719712917668,2.4858,3380.5,3380.0,0.55]
[1719712917870,0.04258511,3380.4,3380.0,0.55]
[1719712919101,0.04258511,3380.4,3380.1,0.858]
[1719712919324,0.04258511,3380.4,3380.2,0.55]
[1719712921802,0.04258511,3380.4,3380.3,0.858]
[1719712922430,7.33,3380.7,3380.3,1.408]
[1719712922733,0.0426138,3380.6,3380.4,0.55]
[1719712924950,2.4684,3380.9,3380.4,0.55]
[1719712925169,0.04257733,3380.5,3380.4,0.55]
[1719712925348,2.4684,3380.9,3380.4,0.55]
[1719712925552,0.04257733,3380.5,3380.4,0.55]
[1719712925735,2.4684,3380.9,3380.4,0.55]
[1719712925934,0.04257733,3380.5,3380.4,0.55]
[1719712926136,2.4684,3380.9,3380.4,0.55]
[1719712926356,0.04257733,3380.5,3380.4,0.55]
[1719712926865,2.4684,3380.9,3380.4,0.55]
[1719712927051,0.04257733,3380.5,3379.6,3.0]
[1719712927206,2.4684,3380.9,3380.2,0.858]
[1719712927411,0.04265772,3380.8,3380.3,0.55]
[1719712927670,1.02249772,3380.8,3380.3,0.55]
[1719712929067,1.17049772,3380.8,3380.3,0.55]
[1719712930155,2.4684,3380.7,3380.3,0.522]
[1719712930316,2.83228977,3380.7,3380.3,0.522]
[1719712930639,0.04260413,3380.6,3380.3,0.522]
[1719712933895,0.04260413,3380.6,3380.4,0.858]
[1719712934061,0.04260413,3380.6,3380.5,0.55]
[1719712934324,0.148,3380.8,3380.5,0.55]
[1719712934663,0.04262954,3380.7,3380.5,0.55]
[1719712934893,0.148,3380.8,3380.5,0.55]
[1719712935032,0.04260274,3380.6,3380.5,0.55]
[1719712935230,0.148,3380.8,3380.5,0.55]
[1719712935441,0.04262954,3380.7,3380.5,0.55]
[1719712935727,0.148,3380.8,3380.5,0.55]
[1719712936263,0.04236954,3380.7,3380.5,0.55]
[1719712936566,0.148,3380.8,3380.5,0.55]
[1719712936782,0.04234274,3380.6,3380.5,0.55]
[1719712936929,2.4684,3380.7,3380.4,0.55]
[1719712937132,2.51076954,3380.7,3380.4,0.55]
[1719712940738,2.51076954,3380.7,3380.5,0.858]
[1719712940739,0.04236954,3380.7,3380.5,0.858]
[1719712940940,0.04236954,3380.7,3380.6,0.55]
[1719712941119,0.148,3380.8,3380.6,0.55]
[1719712941327,0.04238012,3380.7,3380.6,0.55]
[1719712941678,0.148,3380.8,3380.6,0.55]
[1719712941842,0.04238012,3380.7,3380.6,0.55]
[1719712942175,0.148,3380.8,3380.6,0.55]
[1719712942420,0.04238012,3380.7,3380.6,0.55]
[1719712942666,0.148,3380.8,3380.6,0.55]
[1719712942869,0.04238012,3380.7,3380.6,0.55]
[1719712943071,0.148,3380.8,3380.6,0.55]
[1719712943275,0.04238012,3380.7,3380.6,0.55]
[1719712943656,0.148,3380.8,3380.6,0.55]
[1719712943855,0.04238012,3380.7,3380.6,0.55]
[1719712944069,0.148,3380.8,3380.6,0.55]
[1719712944272,0.04238012,3380.7,3380.6,0.55]
[1719712944447,0.148,3380.8,3380.6,0.55]
[1719712944742,0.04238012,3380.7,3380.6,0.55]
[1719712945085,0.148,3380.8,3380.6,0.55]
[1719712945284,0.04238012,3380.7,3380.6,0.55]
[1719712945640,0.148,3380.8,3380.6,0.55]
[1719712945858,0.04238012,3380.7,3380.6,0.55]
[1719712946548,0.148,3380.8,3380.6,0.55]
[1719712946836,0.148,3380.8,3380.4,1.408]
[1719712946837,0.04238739,3380.7,3380.4,1.408]
[1719712947083,0.148,3380.8,3380.4,1.408]
[1719712947378,0.04236059,3380.6,3380.4,1.408]
[1719712947535,0.04233379,3380.5,3380.4,1.408]
[1719712947740,0.148,3380.8,3380.4,1.408]
[1719712948256,0.04238739,3380.7,3380.4,1.408]
[1719712948459,0.148,3380.8,3380.4,1.408]
[1719712948679,0.04239167,3380.7,3380.6,0.858]
[1719712948985,0.04239167,3380.7,3380.6,1.408]
[1719712949190,0.04087173,3380.7,3380.6,1.408]
[1719712949397,0.148,3380.8,3380.6,1.408]
[1719712949545,0.148,3380.8,3380.7,0.55]
[1719712950673,0.18889853,3380.8,3380.7,0.55]
[1719712951527,0.18889853,3380.8,3380.7,0.858]
[1719712951670,0.18889853,3380.8,3380.7,1.408]
[1719712970249,0.18889853,3380.8,3380.7,4.408]
[1719712976314,0.18889853,3380.8,3380.7,1.408]
[1719712976911,0.18889853,3380.8,3380.7,0.55]
[1719712977152,0.18889853,3380.8,3380.7,1.408]
[1719712977737,0.18889853,3380.8,3380.7,0.55]
[1719712977941,0.18889853,3380.8,3380.5,1.184838]
[1719712977942,1.18744838,3380.8,3380.5,1.184838]
[1719712978123,2.457,3380.7,3380.5,1.184838]
[1719712978315,2.457,3380.7,3380.1,0.858]
[1719712978620,2.457,3380.5,3380.1,0.858]
[1719712978738,2.457,3380.3,3379.7,1.184838]
[1719712978921,2.457,3380.3,3378.8,0.32423126]
[1719712979259,7.36958313,3380.2,3379.9,0.858]
[1719712979474,0.03958313,3380.2,3379.9,0.858]
[1719712979612,0.24965831,3380.2,3379.9,0.858]
[1719712979827,0.0395729,3380.1,3379.9,0.858]
[1719712980016,2.457,3380.0,3378.2,2.16535494]
[1719712980217,2.457,3380.0,3378.1,0.93029757]
[1719712980218,7.33,3379.7,3379.2,0.858]
[1719712980467,0.03930545,3379.6,3379.2,0.858]
[1719712980666,0.36042312,3379.9,3379.3,0.858]
[1719712980866,3.04386975,3379.8,3379.3,0.858]
[1719712981729,2.457,3379.7,3378.2,1.185443]
[1719712981962,7.91612929,3379.6,3378.8,0.858]
[1719712982284,8.81337184,3379.6,3378.2,1.185443]
[1719712982602,0.858,3379.4,3378.2,1.185443]
[1719712982745,1.12703718,3379.3,3378.4,0.858]
[1719712982915,1.16615644,3379.3,3378.4,0.858]
[1719712983963,1.16615644,3379.3,3378.6,0.858]
[1719712984162,0.36231564,3379.2,3378.7,0.55]
[1719712984664,0.03906562,3379.1,3378.7,0.55]
[1719712987665,0.03906562,3379.1,3378.8,0.858]
[1719712993264,22.387,3379.5,3378.9,0.55]
[1719712993456,0.03885295,3379.4,3379.0,0.858]
[1719712993650,0.03885295,3379.4,3379.1,0.55]
[1719712994556,0.03885295,3379.4,3379.0,0.858]
[1719712994843,0.03885295,3379.4,3378.7,0.858]
[1719712994998,1.08005117,3379.4,3378.8,0.55]
[1719712995961,1.08005117,3379.4,3378.9,0.858]
[1719712996202,1.08005117,3379.4,3379.0,0.55]
[1719713005285,0.03885295,3379.4,3379.0,0.55]
[1719713007113,0.03885295,3379.4,3379.3,0.858]
[1719713007347,7.33,3379.6,3379.3,1.408]
[1719713007512,7.33,3379.6,3379.5,0.858]
[1719713007829,7.33,3379.6,3379.5,1.408]
[1719713008111,7.33,3379.6,3379.5,0.55]
[1719713008475,7.33,3379.6,3379.4,0.55]
[1719713010727,2.4624,3379.4,3379.0,0.858]
[1719713010912,0.03780194,3379.3,3379.1,0.55]
[1719713013328,0.03780194,3379.3,3379.2,0.858]
[1719713013618,0.03780194,3379.3,3379.2,1.408]
[1719713016930,0.03780194,3379.3,3379.2,0.55]
[1719713017611,0.03780194,3379.3,3378.9,0.55]
[1719713022047,0.03780194,3379.3,3379.0,0.858]
[1719713022201,0.03780194,3379.3,3379.1,0.55]
[1719713034109,2.4084,3379.2,3378.7,0.858]
[1719713034682,2.4084,3379.2,3378.8,0.55]
[1719713034699,0.03653233,3379.1,3378.8,0.55]
[1719713035765,2.4084,3379.0,3378.6,0.858]
[1719713036419,0.03647868,3378.9,3378.6,0.858]
[1719713037107,0.03647868,3378.9,3378.7,0.55]
[1719713041179,0.03647868,3378.9,3378.5,0.55]
[1719713041615,0.24448787,3378.8,3378.5,0.55]
[1719713041845,2.2743,3378.6,3377.9,0.858]
[1719713042117,2.2743,3378.6,3377.9,1.716]
[1719713042323,0.03410325,3378.5,3377.9,0.858]
[1719713042604,2.2743,3378.4,3377.5,0.32423126]
[1719713042808,2.2743,3378.4,3377.9,0.858]
[1719713043115,0.03634297,3378.3,3377.9,0.858]
[1719713044217,0.03634297,3378.3,3378.1,0.858]
[1719713046175,0.03634297,3378.3,3378.2,0.55]
[1719713047645,0.03634297,3378.3,3378.2,1.408]
[1719713049051,7.33,3378.6,3378.2,1.408]
[1719713049216,0.03616465,3378.3,3378.2,0.55]
[1719713049417,7.33,3378.6,3378.2,0.858]
[1719713049635,7.33,3378.6,3377.8,5.07235]
[1719713049636,7.33,3378.6,3378.5,0.858]
[1719713049945,7.36617732,3378.6,3378.3,1.408]
[1719713050662,2.2743,3378.5,3378.3,0.55]
[1719713051042,0.03617072,3378.4,3378.3,0.55]
[1719713051424,0.03617072,3378.4,3377.6,0.32423126]
[1719713051611,0.03617072,3378.4,3378.2,0.858]
[1719713054108,0.03617072,3378.4,3377.4,1.185931]
[1719713054374,0.03617072,3378.4,3378.3,0.858]
[1719713055724,0.03617072,3378.4,3377.5,3.55]
[1719713055924,0.03617072,3378.4,3378.2,0.858]
[1719713059174,0.03617072,3378.4,3377.5,3.55]
[1719713059381,0.03617072,3378.4,3378.1,0.858]
[1719713060036,0.03617072,3378.4,3377.9,0.858]
[1719713060250,0.03617072,3378.4,3378.0,0.55]
[1719713065466,2.3743,3378.3,3377.9,0.858]
[1719713065776,2.41038097,3378.3,3377.9,0.858]
[1719713068052,2.41038097,3378.3,3378.1,0.858]
[1719713070929,2.65141907,3378.3,3377.6,0.858]
[1719713071199,2.65141907,3378.3,3377.7,0.55]
[1719713071436,2.3743,3378.1,3377.6,0.55]
[1719713071758,0.0358615,3378.0,3377.6,0.55]
[1719713074109,0.0358615,3378.0,3377.6,0.858]
[1719713074279,0.0358615,3378.0,3377.7,0.55]
[1719713078659,0.0358615,3378.0,3377.1,0.32423126]
[1719713078660,0.36267765,3378.0,3377.1,0.32423126]
[1719713078893,2.3976,3377.9,3377.2,0.858]
[1719713079132,2.3976,3377.9,3377.3,0.55]
[1719713079325,0.03602306,3377.8,3377.3,0.55]
[1719713080096,0.03602306,3377.8,3377.1,0.55]
[1719713080412,0.03602306,3377.8,3377.2,0.858]
[1719713080622,0.03602306,3377.8,3377.3,0.55]
[1719713084075,2.3976,3377.7,3376.9,3.0]
[1719713084286,2.3976,3377.5,3376.3,3.0]
[1719713084614,2.3976,3377.5,3376.8,0.858]
[1719713084615,0.03591422,3377.4,3376.8,0.858]
[1719713084794,0.03591422,3377.4,3376.9,0.55]
[1719713084993,0.03591422,3377.4,3376.9,1.408]
[1719713088759,0.03591422,3377.4,3377.1,0.858]
[1719713088883,0.03591422,3377.4,3377.2,0.55]
[1719713090433,0.18391422,3377.4,3377.2,0.55]
[1719713096540,0.18391422,3377.4,3377.3,0.858]
[1719713096696,0.18391422,3377.4,3377.3,1.408]
[1719713104509,0.18391422,3377.4,3377.3,0.55]
[1719713104712,0.18391422,3377.4,3377.3,1.408]
[1719713105554,0.18391422,3377.4,3377.3,0.55]
[1719713105727,2.67221422,3377.4,3377.3,1.408]
[1719713106050,2.67221422,3377.4,3376.7,3.0]
[1719713106250,2.67221422,3377.4,3377.1,0.858]
[1719713106545,2.67221422,3377.4,3377.2,0.55]
[1719713106914,2.67221422,3377.4,3377.3,0.858]
[1719713108126,2.67221422,3377.4,3377.2,0.55]
[1719713108327,2.67221422,3377.4,3377.3,0.858]
[1719713109760,2.67221422,3377.4,3377.3,0.828]
[1719713113738,0.18391422,3377.4,3377.3,0.828]
[1719713113933,0.18391422,3377.4,3377.3,1.378]
[1719713116458,2.67221422,3377.4,3377.3,1.378]
[1719713118614,2.67221422,3377.4,3376.7,3.0]
[1719713118821,2.67221422,3377.4,3377.2,0.858]
[1719713119628,2.67221422,3377.4,3377.1,0.858]
[1719713119954,2.67221422,3377.4,3377.2,0.55]
[1719713121582,2.67221422,3377.4,3376.7,3.0]
[1719713121743,2.67221422,3377.4,3377.1,0.858]
[1719713123482,2.67221422,3377.4,3377.3,0.858]
[1719713123636,2.67221422,3377.4,3377.3,1.408]
[1719713124366,0.18391422,3377.4,3377.3,1.408]
[1719713129377,0.18391422,3377.4,3377.3,0.55]
[1719713129665,0.18391422,3377.4,3377.3,1.408]
[1719713131945,0.23959622,3377.4,3377.3,1.408]
[1719713134546,0.23959622,3377.4,3377.3,0.55]
[1719713134915,0.23959622,3377.4,3377.3,1.408]
[1719713137888,2.3294,3377.3,3377.1,0.858]
[1719713138031,2.3294,3377.3,3377.2,0.55]
[1719713138230,2.42097655,3377.3,3377.2,0.55]
[1719713140629,0.09157655,3377.3,3377.2,0.55]
[1719713145438,0.09157655,3377.3,3377.2,2.68193885]
[1719713145676,0.148,3377.4,3377.3,2.07266]
[1719713145983,0.08363052,3377.4,3377.3,8.61252823]
[1719713146142,0.08363052,3377.4,3377.3,11.18926344]
[1719713146344,0.08363052,3377.4,3377.3,10.27205521]
[1719713146544,0.08363052,3377.4,3377.3,9.5839757]
[1719713147047,0.08363052,3377.4,3377.3,11.13001309]
[1719713147265,0.08363051,3377.4,3377.3,11.13001309]
[1719713147480,7.33,3377.9,3377.6,2.07245]
[1719713147676,7.33,3378.4,3377.8,0.858]
[1719713147883,7.33,3378.4,3378.2,0.858]
[1719713148474,7.33,3378.4,3378.2,0.55]
[1719713148595,7.33,3378.4,3378.2,1.408]
[1719713148763,7.33,3378.4,3378.2,0.55]
[1719713149149,7.33,3378.4,3378.2,1.408]
[1719713149560,7.33,3378.4,3378.2,0.55]
[1719713149561,22.3818,3378.3,3378.2,0.55]
[1719713149991,24.59619392,3378.3,3378.2,0.55]
[1719713150470,24.59619392,3378.3,3378.1,0.55]
[1719713150691,22.3818,3378.3,3378.1,0.55]
[1719713151210,2.4518,3378.3,3378.1,0.55]
[1719713152072,2.5998,3378.3,3378.1,0.55]
[1719713152598,2.5998,3378.3,3377.3,3.0]
[1719713152687,2.5998,3378.3,3376.9,0.32423126]
[1719713152688,2.5998,3378.3,3377.8,0.858]
[1719713152932,2.5998,3378.3,3377.9,0.55]
[1719713153173,0.08391966,3378.2,3377.9,0.55]
[1719713153620,2.5998,3378.3,3377.9,0.55]
[1719713153768,0.08389449,3378.1,3377.9,0.55]
[1719713153987,2.5998,3378.3,3377.9,0.55]
[1719713154226,0.08386932,3378.0,3377.9,0.55]
[1719713154690,2.5998,3378.3,3377.9,0.55]
[1719713154886,0.08391966,3378.2,3377.9,0.55]
[1719713155114,2.5998,3378.3,3378.0,0.858]
[1719713155412,0.08389449,3378.1,3378.0,0.858]
[1719713155587,2.5998,3378.3,3378.0,0.858]
[1719713155774,0.08389449,3378.1,3378.0,0.858]
[1719713155979,2.5998,3378.3,3378.0,0.858]
[1719713156178,0.08389449,3378.1,3378.0,0.858]
[1719713156378,0.148,3378.3,3378.0,0.55]
[1719713156714,0.148,3378.3,3378.2,0.858]
[1719713157006,0.148,3378.3,3378.2,1.408]
[1719713160751,0.23194483,3378.3,3378.2,1.408]
[1719713162598,0.23194483,3378.3,3377.7,3.0]
[1719713162835,0.23194483,3378.3,3378.1,0.858]
[1719713163676,0.23194483,3378.3,3378.2,0.55]
[1719713165716,0.23194483,3378.3,3378.2,1.408]
[1719713179570,0.23194483,3378.3,3378.2,3.4801]
[1719713179765,0.23194483,3378.3,3378.2,6.4801]
[1719713180990,0.23194483,3378.3,3378.2,8.5522]
[1719713184243,0.148,3378.3,3378.2,8.5522]
[1719713185669,0.148,3378.3,3378.2,6.4801]
[1719713186778,0.148,3378.3,3378.2,8.5522]
[1719713187191,1e-08,3378.3,3378.2,8.5522]
[1719713190085,7.33,3378.8,3378.6,2.07185]
[1719713190370,7.33,3379.3,3378.7,1.408]
[1719713190564,7.33,3379.3,3379.1,0.858]
[1719713190820,7.33,3379.3,3379.2,0.55]
[1719713195527,7.33,3379.3,3379.2,1.408]
[1719713195840,2.3156,3379.4,3379.2,1.408]
[1719713196847,2.3156,3379.4,3379.2,0.55]
[1719713197033,2.3156,3379.4,3379.2,1.408]
[1719713205560,0.08378152,3379.3,3379.2,1.408]
[1719713210485,0.08378152,3379.3,3379.2,0.55]
[1719713210632,0.08378152,3379.3,3379.2,1.408]
[1719713214037,0.08378152,3379.3,3379.2,0.55]
[1719713214516,0.08378152,3379.3,3379.2,1.408]
[1719713217088,2.46838152,3379.3,3379.2,0.55]
[1719713217533,2.46838152,3379.3,3379.0,0.55]
[1719713217723,2.46838152,3379.3,3378.9,0.858]
[1719713217724,2.71521967,3379.3,3378.6,3.0]
[1719713217922,2.71521967,3379.3,3378.5,1.185572]
[1719713218178,2.71521967,3379.3,3378.7,0.858]
[1719713219232,2.46838152,3379.3,3378.9,0.858]
[1719713220951,0.08378152,3379.3,3379.2,0.858]
[1719713221139,7.33,3379.9,3379.2,1.408]
[1719713221446,7.33,3379.9,3379.8,0.858]
[1719713223868,7.33,3379.9,3379.8,1.408]
[1719713224648,19.93,3380.6,3379.8,1.408]
[1719713224649,7.33,3380.5,3379.8,1.408]
[1719713224834,2.4206,3380.4,3379.9,0.55]
[1719713225052,2.4206,3380.4,3380.3,0.858]
[1719713225333,7.33,3380.5,3380.3,1.408]
[1719713225450,7.33,3380.5,3380.3,0.858]
[1719713225648,7.33,3380.5,3380.4,0.55]
[1719713228607,19.93,3380.6,3380.4,0.55]
[1719713232477,19.93,3380.6,3380.5,0.858]
[1719713232994,19.93,3380.6,3380.4,0.55]
[1719713233291,19.93,3380.6,3380.4,1.408]
[1719713234796,2.4206,3380.7,3380.4,1.408]
[1719713234996,2.4206,3380.7,3380.4,0.55]
[1719713235792,0.07571038,3380.6,3380.4,0.55]
[1719713240558,0.07571038,3380.6,3380.5,0.858]
[1719713241151,0.07571038,3380.6,3380.5,1.408]
[1719713243498,0.07571038,3380.6,3380.2,0.858]
[1719713245078,0.07571038,3380.6,3379.3,3.0]
[1719713245079,2.4555,3380.5,3379.3,3.0]
[1719713245419,2.53134847,3380.5,3380.0,0.858]
[1719713245623,2.53134847,3380.5,3380.1,0.55]
[1719713245799,2.78448332,3380.5,3380.1,0.55]
[1719713247315,2.78448332,3380.5,3379.5,3.0]
[1719713247316,2.78448332,3380.5,3379.7,0.858]
[1719713250822,3.64248332,3380.5,3379.0,1.185367]
[1719713251004,2.4555,3380.2,3379.3,0.858]
[1719713251218,2.4555,3380.2,3379.4,0.55]
[1719713251412,0.07560546,3380.1,3379.4,0.55]
[1719713251634,2.4555,3380.0,3379.4,0.55]
[1719713251805,2.53108032,3380.0,3379.4,0.55]
[1719713255241,2.53108032,3380.0,3379.5,0.858]
[1719713268455,2.53108032,3380.0,3379.4,1.408]
[1719713276865,2.53108032,3380.0,3379.8,0.858]
[1719713279477,2.53108032,3380.0,3379.4,0.55]
[1719713279678,2.53108032,3380.0,3379.6,0.858]
[1719713280070,2.53108032,3380.0,3379.7,0.55]
[1719713280310,2.53108032,3380.0,3378.8,3.0]
[1719713280462,2.3888,3379.9,3379.3,0.858]
[1719713280781,2.3888,3379.9,3379.4,0.55]
[1719713280782,0.07455043,3379.8,3379.4,0.55]
[1719713282899,0.07455043,3379.8,3378.8,3.0]
[1719713282900,2.3888,3379.7,3378.8,3.0]
[1719713283099,2.46253641,3379.7,3378.9,0.55]
[1719713283296,2.46253641,3379.7,3379.0,0.858]
[1719713283476,2.46253641,3379.7,3379.1,0.55]
[1719713285219,2.3888,3379.6,3379.1,0.55]
[1719713285381,2.3888,3379.6,3378.1,0.28883056]
[1719713285382,0.07356736,3379.5,3379.0,0.858]
[1719713285585,2.3888,3379.4,3379.1,0.55]
[1719713285801,0.07353897,3379.3,3379.1,0.55]
[1719713287107,0.07353897,3379.3,3379.0,0.858]
[1719713287276,2.3888,3379.2,3377.8,3.0]
[1719713287502,7.33,3379.1,3378.6,0.858]
[1719713287713,0.07340683,3379.1,3378.7,0.55]
[1719713288021,0.07340683,3379.1,3378.8,0.858]
[1719713288370,2.22220683,3379.2,3378.8,0.858]
[1719713288881,0.07095025,3379.1,3378.8,0.858]
[1719713293210,7.33,3379.5,3379.0,0.858]
[1719713293421,0.07103005,3379.4,3379.0,0.858]
[1719713293640,0.07103005,3379.4,3379.1,0.55]
[1719713297008,0.07103005,3379.4,3379.2,0.858]
[1719713297406,2.3888,3379.6,3379.2,0.858]
[1719713297603,0.07108012,3379.5,3379.2,0.858]
[1719713303338,0.07108012,3379.5,3379.2,1.01621]
[1719713303538,0.07108012,3379.5,3379.3,0.55]
[1719713303744,9.6521,3379.9,3379.3,0.55]
[1719713303979,0.07107296,3379.4,3379.3,0.55]
[1719713304187,9.6521,3379.9,3379.3,0.55]
[1719713304608,0.07117354,3379.8,3379.3,0.55]
[1719713304808,0.97232735,3379.7,3379.1,0.858]
[1719713305038,0.07113847,3379.6,3379.2,0.55]
[1719713305239,9.6521,3379.9,3379.2,0.55]
[1719713305425,1.12219876,3379.8,3379.2,0.55]
[1719713308130,2.3221,3379.7,3379.2,0.55]
[1719713308318,2.3221,3379.7,3379.0,0.55]
[1719713308521,0.07114814,3379.6,3379.0,0.55]
[1719713313055,0.07114814,3379.6,3379.1,0.858]
[1719713313249,0.07114814,3379.6,3379.2,0.55]
[1719713319961,0.07114814,3379.6,3379.1,0.55]
[1719713320262,0.34442581,3379.5,3379.1,0.55]
[1719713320470,0.07114814,3379.6,3379.1,0.55]
[1719713320766,0.07109784,3379.4,3379.1,0.55]
[1719713320975,0.07111448,3379.5,3379.1,0.55]
[1719713321143,0.07106856,3379.3,3379.1,0.55]
[1719713321328,2.3221,3379.7,3379.1,0.55]
[1719713321531,0.07104341,3379.2,3379.1,0.55]
[1719713321752,2.3221,3379.7,3379.1,0.55]
[1719713321942,0.07104341,3379.2,3379.1,0.55]
[1719713322168,2.3221,3379.7,3379.1,0.55]
[1719713322365,2.65792702,3379.7,3379.1,0.55]
[1719713322586,0.071144,3379.6,3379.1,0.55]
[1719713325178,0.31257863,3379.6,3379.1,0.55]
[1719713325492,0.071144,3379.6,3379.1,0.55]
[1719713325651,0.31259717,3379.6,3379.1,0.55]
[1719713326040,1.34264959,3379.6,3379.1,0.55]
[1719713326273,1.10119642,3379.6,3379.1,0.55]
[1719713326772,1.10119642,3379.6,3379.0,0.55]
[1719713329558,0.2414854,3379.5,3379.0,0.55]
[1719713330053,0.0710838,3379.4,3379.0,0.55]
[1719713331661,0.2414854,3379.6,3379.0,0.55]
[1719713331862,0.07111746,3379.5,3379.0,0.55]
[1719713332170,0.07111746,3379.5,3379.1,0.858]
[1719713333708,0.07109231,3379.4,3379.1,0.858]
[1719713334063,2.3221,3379.7,3379.1,0.858]